Cogmind - Beta 13 @@@ ROGUE MODE // 2024.04.10 @ 17:09:01 Player: lazy_engineer Result: Destroyed by as-16312 with Assembled Blade Performance ------------- Evolutions (0) 0 Regions Visited (4) 800 Robots Destroyed (29) 145 Value Destroyed (491) 491 Prototype IDs (23) 460 Alien Tech Used (0) 0 Bonus (300) 300 TOTAL SCORE: 2196 Bonus ------- Aligned with FarCom 300 Cogmind --------- Core Integrity 0/250 Matter 295/300 Energy 125/125 System Corruption 2% Temperature Cool (0) Movement Treading (240) Ox1 Location -9/Mines Parts ------- > --- POWER (1) -------- Light Ion Engine > --- PROPULSION (2) --- Light Treads > --- UTILITY (2) ------ Medium Storage Unit Signal Interpreter > --- WEAPON (2) ------- AWS/Thermal > --- INVENTORY (10) --- Combat Airjet Visual Processing Unit Signal Interpreter Launcher Guidance Computer Light Assault Rifle Grenade Launcher Rocket Launcher Mining Laser Peak State ------------ > --- POWER ------------ Light Nuclear Core > --- PROPULSION ------- Light Treads Wheel > --- UTILITY ---------- Medium Storage Unit Signal Interpreter > --- WEAPON ----------- AWS/Thermal > --- INVENTORY -------- Light Ion Engine Light Treads Visual Processing Unit Signal Interpreter Light Assault Rifle Grenade Launcher Mining Laser [Rating: 23] Favorites ----------- Power Light Ion Engine Engine Light Ion Engine Power Core Light Nuclear Core Propulsion Light Treads Treads Light Treads Wheel Wheel Hover Unit Hover Unit Utility Medium Storage Unit Storage Medium Storage Unit Processor Signal Interpreter Weapon Assault Rifle Energy Gun AWS/Thermal Ballistic Gun Assault Rifle Build | -11 -10 -10 -10 -9 ------- Run | Yrd Mat Min Exi Min Slots Evolved . | . . . . . Power . | . . . . . Propulsion . | . . . . . Utility . | . . . . . Weapon . | . . . . . Parts Attached 27 | 7 11 5 1 3 Power 5 | 1 1 1 1 1 Engine 4 | 1 1 1 . 1 Core 1 | . . . 1 . Reactor . | . . . . . Propulsion 10 | 2 5 2 . 1 Treads 6 | 1 3 1 . 1 Leg . | . . . . . Wheel 3 | 1 1 1 . . Hover 1 | . 1 . . . Flight . | . . . . . Utility 4 | 2 2 . . . Device . | . . . . . Storage 3 | 2 1 . . . Processor 1 | . 1 . . . Hackware . | . . . . . Protection . | . . . . . Artifact . | . . . . . Weapon 8 | 2 3 2 . 1 Energy Gun 2 | 1 . . . 1 Energy Cannon . | . . . . . Ballistic Gun 6 | 1 3 2 . . Ballistic Cannon . | . . . . . Launcher . | . . . . . Special Weapon . | . . . . . Impact Weapon . | . . . . . Slashing Weapon . | . . . . . Piercing Weapon . | . . . . . Special Melee Weapon . | . . . . . Unidentified Prototypes . | . . . . . Parts Lost 5 | . . 2 . 3 Power 2 | . . 1 . 1 Propulsion 2 | . . . . 2 Utility . | . . . . . Weapon 1 | . . 1 . . Highest Loss Streak 2 | . . 1 . 2 To Critical Strikes . | . . . . . Average Slot Usage (%) 91 | . 99 93 73 81 Engine 8 | . 14 8 1 3 Core 3 | . . . 12 10 Treads 17 | . 18 14 14 19 Wheel 9 | . 9 13 14 5 Storage 15 | . 17 14 14 14 Processor 12 | . 10 14 14 14 Energy Gun 5 | . 5 . . 13 Ballistic Gun 15 | . 21 27 2 . Naked Turns . | . . . . . Heaviest Build 23 | 18 23 17 16 23 Greatest Support 40 | 10 40 10 10 40 Greatest Overweight (x) 2 | 1 2 1 1 2 Average Overweight (x) . | . . 1 1 1 Largest Inventory Capacity 10 | 8 10 10 10 10 Average Capacity 9 | 6 9 10 10 10 Most Carried 10 | 5 10 10 10 9 Average Carried 7 | 2 6 9 9 6 Final Capacity 10 | 8 10 10 10 10 Final Carried 10 | 2 9 10 9 8 Class Distribution -------------------- 100% | Mutant Dominant Class ---------------- Mutant | -10/Materials Mutant | -10/Mines Mutant | -10/Exiles Mutant | -9/Mines Resources | -11 -10 -10 -10 -9 ----------- Run | Yrd Mat Min Exi Min Matter Collected 788 | 274 173 189 . 152 Remotely . | . . . . . Salvage Created 901 | 89 395 162 . 255 Parts 52 | 1 29 16 . 6 Haulers Intercepted . | . . . . . Recyclers Shooed 1 | . . . . 1 Parts Field Recycled . | . . . . . Retrieved Matter . | . . . . . Parts Self-Destructed . | . . . . . Prevented . | . . . . . Kills | -11 -10 -10 -10 -9 ------- Run | Yrd Mat Min Exi Min Combat Hostiles Destroyed 31 | . 11 8 . 12 Guns 31 | . 11 8 . 12 Classes Destroyed 7 | 1 5 . . 1 Worker 1 | . 1 . . . Recycler 2 | 1 . . . 1 Operator 1 | . 1 . . . Watcher 3 | . 3 . . . Swarmer 15 | . 6 6 . 3 Grunt 7 | . 5 2 . . Assembled 9 | . . . . 9 Best Kill Streak 10 | 1 4 3 . 10 Combat Bots Only 9 | . 3 3 . 9 Max Kills in Single Turn 1 | 1 1 1 . 1 Gunslinging . | . . . . . Exploded . | . . . . . Melee . | . . . . . Uniques/NPCs Destroyed . | . . . . . Combat | -11 -10 -10 -10 -9 -------- Run | Yrd Mat Min Exi Min Hostile Shots Fired 162 | . 59 55 . 48 Missed 52 | . 18 18 . 16 Damage Taken 1033 | . 381 328 . 324 Core 268 | . 120 68 . 80 Absorbed by Shields . | . . . . . Core Remaining (%) 100 | 100 . . . . Volleys Fired 79 | 4 50 25 . . Largest 2 | 2 2 2 . . Hottest 70 | 70 70 40 . . Shots Fired 192 | 7 100 42 . 43 Gun 192 | 7 100 42 . 43 Cannon . | . . . . . Launcher . | . . . . . Special . | . . . . . Kinetic 120 | 4 74 42 . . Thermal 72 | 3 26 . . 43 Explosive . | . . . . . Electromagnetic . | . . . . . Robot Hit Streak 12 | 3 12 4 . 10 Robot Miss Streak 4 | 1 4 4 . 4 Penetration Max . | . . . . . Secondary Targets 2 | . 2 . . . Max Gunslinging Chain 1 | . 1 . . . Autonomous 44 | . . . . 44 Shots Hit Robots 110 | 6 59 18 . 27 Core Hits 47 | 2 23 9 . 13 Critical Kills . | . . . . . Critical Parts Destroyed . | . . . . . Critical Strikes 5 | 1 4 . . . Burn 5 | 1 4 . . . Melee Attacks . | . . . . . Impact . | . . . . . Slashing . | . . . . . Piercing . | . . . . . Sneak Attacks . | . . . . . Combat Hostiles . | . . . . . Follow-up Attacks . | . . . . . Damage Inflicted 1806 | 59 711 262 . 774 Guns 1806 | 59 711 262 . 774 Cannons . | . . . . . Explosions . | . . . . . Melee . | . . . . . Ramming . | . . . . . Kinetic 757 | 21 474 262 . . Thermal 1049 | 38 237 . . 774 Explosive . | . . . . . Electromagnetic . | . . . . . Impact . | . . . . . Slashing . | . . . . . Piercing . | . . . . . Highest Corruption 2 | . 2 2 2 2 Average Corruption 2 | . 2 2 2 2 Corruption Purged . | . . . . . Corruption Blocked . | . . . . . Effects 21 | . 4 7 3 7 Message Errors 4 | . 1 . . 3 Matter Fused 8 | . 2 3 1 2 Heat Flow Errors 4 | . . 1 1 2 Energy Discharges 1 | . . . 1 . Parts Fused 1 | . . 1 . . Data Loss (minor) 1 | . . 1 . . Data Loss (major) 1 | . 1 . . . Weapon Failures 1 | . . 1 . . Overload Shots . | . . . . . Overflow Damage . | . . . . . Projectiles . | . . . . . Explosions . | . . . . . Melee . | . . . . . Knockbacks . | . . . . . Impact . | . . . . . Kinetic . | . . . . . Secondary . | . . . . . Self-Inflicted Damage . | . . . . . Shots . | . . . . . Rammed . | . . . . . Targets Rammed . | . . . . . Kicked . | . . . . . Crushed . | . . . . . Highest Temperature 221 | 70 104 186 221 201 Average Temperature 54 | 40 36 100 113 82 Received Heat Transfer 161 | . 102 39 . 20 Siege Activations . | . . . . . Robots Corrupted . | . . . . . Combat Hostiles . | . . . . . Parts Fried . | . . . . . Impact Corruptions . | . . . . . Robots Melted . | . . . . . Combat Hostiles . | . . . . . Parts Melted 4 | 1 1 . . 2 Heat Transferred 2183 | 185 999 . . 999 Parts Sabotaged . | . . . . . Parts Stolen . | . . . . . Parts Stripped . | . . . . . Power Chain Reactions . | . . . . . Alert | -11 -10 -10 -10 -9 ------- Run | Yrd Mat Min Exi Min Peak Influence 226 | 5 226 226 . 70 Initial 11 | . 3 11 . . Average 97 | 1 114 153 . 29 Maximum Alert Level 1 | . 1 1 . . Low Security (%) 87 | 100 91 59 . 100 Level 1 12 | . 8 40 . . Level 2 . | . . . . . Level 3 . | . . . . . Level 4 . | . . . . . Level 5 . | . . . . . High Security . | . . . . . Max Security . | . . . . . Squads Dispatched 1 | . 1 . . . Investigation . | . . . . . Extermination . | . . . . . Reinforcement 1 | . 1 . . . Assault . | . . . . . Garrison . | . . . . . Intercept . | . . . . . Searches Triggered . | . . . . . Construction Impeded . | . . . . . Haulers Reinforced . | . . . . . Active Scanning Responses . | . . . . . Cargo Convoy Interrupts . | . . . . . Stealth | -11 -10 -10 -10 -9 --------- Run | Yrd Mat Min Exi Min Distress Signals 2 | . 2 . . . Communications Jammed . | . . . . . Distress Signals . | . . . . . Times Spotted 48 | . 21 11 . 16 Peak Tracking Total 5 | . 3 5 . 3 Tactical Retreats 4 | . . 2 . 2 Traps | -11 -10 -10 -10 -9 ------- Run | Yrd Mat Min Exi Min Traps Triggered 1 | . 1 . . . Indirectly . | . . . . . Trap Hack Attempts . | . . . . . Triggered . | . . . . . Disarmed . | . . . . . Reprogrammed . | . . . . . Reused . | . . . . . Traps Extracted . | . . . . . Installed . | . . . . . Triggered . | . . . . . Machines | -11 -10 -10 -10 -9 ---------- Run | Yrd Mat Min Exi Min Machines Disabled . | . . . . . Max in Single Turn . | . . . . . Machines Repaired . | . . . . . Machines Dismantled . | . . . . . Machines Sabotaged . | . . . . . Overloaded Fab Kills . | . . . . . Hacking | -11 -10 -10 -10 -9 --------- Run | Yrd Mat Min Exi Min Machines Accessed 6 | . 4 1 1 . Terminals 4 | . 3 1 . . Fabricators . | . . . . . Repair Stations . | . . . . . Recycling Units 1 | . 1 . . . Scanalyzers . | . . . . . Garrison Access . | . . . . . Total Hacks 17 | . 14 2 1 . Successful 7 | . 5 1 1 . Failed 10 | . 9 1 . . Catastrophic 1 | . 1 . . . Database Lockouts . | . . . . . Manual 9 | . 6 2 1 . Terminals 12 | . 10 2 . . Fabricators . | . . . . . Repair Stations . | . . . . . Recycling Units 4 | . 4 . . . Scanalyzers . | . . . . . Garrison Access . | . . . . . Terminal Hacks 3 | . 2 . 1 . Hauler Manifests 1 | . 1 . . . Zone Layout 1 | . 1 . . . Derelict Proto ID Bank 1 | . . . 1 . Fabricator Hacks . | . . . . . Repair Station Hacks . | . . . . . Recycling Unit Hacks 2 | . 2 . . . Report Inventory 1 | . 1 . . . Retrieve Components 1 | . 1 . . . Scanalyzer . | . . . . . Garrison Access Hacks . | . . . . . Unauthorized Hacks 2 | . 1 1 . . Terminals 2 | . 1 1 . . Track 1 | . . 1 . . Operators 1 | . 1 . . . Fabricators . | . . . . . Repair Stations . | . . . . . Recycling Units . | . . . . . Scanalyzers . | . . . . . Garrison Access . | . . . . . Data Cores Recovered . | . . . . . Used . | . . . . . Hacking Detections 5 | . 4 1 . . Full Trace Events 1 | . 1 . . . Feedback Events . | . . . . . Feedback Blocked . | . . . . . Robot Schematics Acquired . | . . . . . Robots Built . | . . . . . Authchips . | . . . . . Time . | . . . . . Total Robot Build Rating . | . . . . . Part Schematics Acquired . | . . . . . Parts Built . | . . . . . Authchips . | . . . . . Time . | . . . . . Total Part Build Rating . | . . . . . Parts Repaired . | . . . . . Time . | . . . . . Parts Recycled . | . . . . . Recycled Matter . | . . . . . Retrieved Matter . | . . . . . Retrieved Components 9 | . 9 . . . Parts Scanalyzed . | . . . . . Part Schematics Acquired . | . . . . . Parts Damaged . | . . . . . Bothacking | -11 -10 -10 -10 -9 ------------ Run | Yrd Mat Min Exi Min Used RIF Installer . | . . . . . Robots Hacked . | . . . . . Non-combat . | . . . . . Combat . | . . . . . Robot Hacks Applied . | . . . . . Relay Couplers Released . | . . . . . Fabnet Peak Effective % . | . . . . . Robots Rewired . | . . . . . Allies Hacked . | . . . . . Hacks Repelled . | . . . . . Allies | -11 -10 -10 -10 -9 -------- Run | Yrd Mat Min Exi Min Total Allies . | . . . . . Largest Group . | . . . . . Highest-Rated Group . | . . . . . Highest-Rated Ally . | . . . . . Total Orders . | . . . . . Ally Attacks . | . . . . . Total Damage . | . . . . . Kills . | . . . . . Allies Corrupted . | . . . . . Allies Melted . | . . . . . Intel | -11 -10 -10 -10 -9 ------- Run | Yrd Mat Min Exi Min Robot Analysis Total . | . . . . . Derelict Logs Recovered 3 | . . 1 . 2 Drone Launches . | . . . . . Drone Recoveries . | . . . . . Exploration | -11 -10 -10 -10 -9 ------------- Run | Yrd Mat Min Exi Min Turns Passed 1967 | 64 868 381 210 444 Spaces Moved 1446 | 51 590 317 215 273 Core 25 | 25 . . . . Treads 278 | . 153 . . 125 Legs . | . . . . . Wheels 1143 | 26 437 317 215 148 Hover . | . . . . . Flight . | . . . . . Fastest Speed 50 | 50 80 95 95 95 Average Speed 109 | 75 111 95 95 141 Slowest Speed 240 | 100 160 95 95 240 Overloaded Moves . | . . . . . Propulsion Burnouts . | . . . . . Robots Hopped . | . . . . . Cave-ins Triggered . | . . . . . Exploration Rate (%) 52 | 4 82 69 60 45 Regions Visited 4 Branch Regions 3 Pre-discovered Areas . | . . . . . Known Exits Taken 3 | . 1 1 1 . Unknown Exits Taken 1 | 1 . . . . Scrap Searched 3 | . . 1 . 2 Spaces Dug . | . . . . . Terrain Destroyed 11 | . . . . 11 Melee . | . . . . . Projectile 11 | . . . . 11 AOE . | . . . . . Terrain Rammed . | . . . . . Walls Destroyed . | . . . . . Machines Disabled . | . . . . . Actions | -11 -10 -10 -10 -9 --------- Run | Yrd Mat Min Exi Min Total 1675 | 69 701 352 222 331 Wait 93 | . 37 4 . 52 Move 1442 | 50 589 316 214 273 Hop . | . . . . . Pick Up 24 | 8 10 1 2 3 Fast Attach 4 | 1 1 2 . . Attach 12 | 6 3 . . 3 Detach . | . . . . . Swap 11 | . 7 3 1 . Drop 10 | . 4 1 5 . Fire 79 | 4 50 25 . . Melee . | . . . . . Ram . | . . . . . Kick . | . . . . . Crush . | . . . . . Escape Stasis . | . . . . . Rewire . | . . . . . Trap . | . . . . . Miscellaneous . | . . . . . Route ------- -11/Scrapyard -10/Materials (discovered 4 exits: *Mat x2 / *Min x2) -10/Mines (discovered 3 exits: *Mat x2 / *Exi) -10/Exiles -9/Mines History --------- Turn | Location | Event 7 | -11/Scrapyard | Discovered new exit (range 14) 65 | -11/Scrapyard | Entered Materials 100 | -10/Materials | Discovered new exit (range 13) 284 | -10/Materials | Discovered new exit (range 8) 319 | -10/Materials | Build established: Mutant 572 | -10/Materials | Identified exit to Mines 623 | -10/Materials | Discovered exit to Mines (range 16) 847 | -10/Materials | Discovered new exit (range 15) 933 | -10/Materials | Entered Mines 987 | -10/Mines | Discovered new exit (range 11) 990 | -10/Mines | Core integrity fell below 50% 1054 | -10/Mines | Met a Derelict bent on vengeance 1110 | -10/Mines | Learned Materials garrison access intel 1270 | -10/Mines | Discovered new exit (range 15) 1297 | -10/Mines | Identified exit to Materials 1310 | -10/Mines | Deemed a non-threat by the Exiles lab entrance 1310 | -10/Mines | Discovered new exit (range 5) 1313 | -10/Mines | Identified exit to Exiles 1314 | -10/Mines | Entered Exiles 1336 | -10/Exiles | Met 8R-AWN 1358 | -10/Exiles | Met EX-HEX 1385 | -10/Exiles | Met EX-BIN 1398 | -10/Exiles | Aligned with FarCom system 1399 | -10/Exiles | Given EX-Vault access code 1423 | -10/Exiles | Opened EX-Vault 1430 | -10/Exiles | Found AWS/Thermal 1449 | -10/Exiles | Warned to stay clear of 0b10 Research branches 1476 | -10/Exiles | Met EX-DEC 1516 | -10/Exiles | Discovered new exit (range 10) 1522 | -10/Exiles | Identified exit to Mines 1524 | -10/Exiles | Left Exiles lab with AWS/Thermal 1524 | -10/Exiles | Entered Mines 1725 | -9/Mines | Learned location of 1 exit from Materials 1790 | -9/Mines | Assembled infested the area 1795 | -9/Mines | Assisted by a Guerilla fighting off Assembled 1818 | -9/Mines | Received a Rocket Launcher from a helpful Derelict 1888 | -9/Mines | Core integrity fell below 20% 1915 | -9/Mines | Destroyed 9 combat bots 1968 | -9/Mines | Destroyed by as-16312 with Assembled Blade Last Messages --------------- 01883_ as-79337 sneak attacks. 01883_ R-06 Scavenger system corrupted by crushing effect. 01884_ R-06 Scavenger system terminally corrupted. 01885_ as-79337 destroyed. 01886_ as-87402 destroyed. 01893_ Destroyed Asb. Hover Unit. 01894_ as-82002 destroyed. 01930_ U-05 Engineer lays Concrete. 01931_ U-05 Engineer builds a Wall. 01947_ Acquired 20 matter. 01948_ VPWIRGAEVIOEPIN%,UMIN 01950_ Acquired 10 matter. 01953_ U-05 Engineer builds a Wall. 01955_ Acquired Launcher Guidance Computer. 01957_ U-05 Engineer builds a Wall. 01958_ Acquired Cmb. Airjet. 01959_ Acquired 87 matter. 01962_ U-05 Engineer builds a Wall. 01963_ AWS/Thermal suddenly breaks down. 01967_ U-05 Engineer builds a Wall. Map ----- +----------------------------------------------------+ | | | | | | | ?????????????????????????????????????????????????? | | ?????????????????????????????????????????????????? | | ???????????????????????????###???????????????????? | | ??????????????????????????# ####???????????????? | | ?????????????????????????? ###??????????????? | | ?????????????????????????? # #??????????????? | | ?????????????????????????## ### # #??????????????? | | ????????????????????????## # #########?????????? | | ????????????????????????# # % #?????????? | | ????????????????????????# ## % ##??????????????? | | ????????????????????????# #???????????????? | | ????????????????????????# # #???????????????? | | ????????????????????????# ## ##???????????????? | | ????????????????????????# ######????????????????? | | ???????????????????????## #?????????????????????? | | ????????????????? ??### r#?????????????????????? | | ????????????????? ??# # #?????????????????????? | | ?????????????????# ??###u ##????????????????????? | | ?????????????????# ???## ##????????????????????? | | ?????????????????# ???# #?????????????????????? | | ?????????????????# ??##% =##????????????????????? | | ???????????????### ###*a!! #??#####?????????????? | | ?????????????### ##; !@ #?## #?????????????? | | ?????????????## %%%! % #?# #????????????#? | | ????????????## % !|= % #?# #??????????? #? | | ??????###??## ##??# ############ #? | | ?????? ## % ##???# #? | | ?????? % |%##### ##############? | | ??????# ! #?????????????? | | ???????# = #?????????????? | | ???????# *%* #######?????????????? | | ??????# ### =%! #???????????????????? | | ?????????????## =%* #???????????????????? | | ??????????????# ! #???????????????????? | | ??????????????# ##???????????????????? | | ??????????????# = ###????????????????????? | | ??????????????## ###??????????????????????? | | ???????????????## # ##????????????????????????? | | ????????????????# ## #?????????????????????????? | | ??????????????### ## #????????????????????????? | | ??????????????# ### #????????????????????????? | | ???######?????# ###?## ???????????????????????? | | ??## ##??## ###### ###??????????????????????? | | ??# ### #????????????????????????? | | ?# ###### ??????????????????? | | ???????# ##????? ???????????????????????? | | ???????## ##??????? ???????????????????????? | +----------------------------------------------------+ Best States ------------- Heat Dissipation 25 Energy Generation 14 Energy Capacity 250 Matter Stores 300 Matter Capacity 300 Sight Range 16 Terrain Scan Density 10 Evasion (%) 50 Recoil Reduction 2 Item Schematics ----------------- None Robot Schematics ------------------ None Fabricated ------------ Nothing Alien Tech Used ----------------- None Achievements -------------- None Challenges ------------ None Game ------ Seed InsulatedSuspensionStripper Manual? 0 Play Time 00:20:23 Cumulative 29.9 hours Start 2024.04.10 @ 16:51:44 End 2024.04.10 @ 17:09:01 Sessions 1 Manual Loads 0 Difficulty Rogue Special Mode None Game No. 59 Rogue 59 Adventurer 0 Explorer 0 Win Type - Total 0 Types 0/0/0/0/0/0/0/0/0 Lore% 22 Gallery% 25 Achievement% 22 Wizard Run 0 Options --------- Layout 0 ASCII 0 Keyboard 0 Movement Mouse Keybinds 0 Fullscreen 1 Font 24/Smallcaps Map View 76x50 Zoom Use 0% Tactical HUD 1 Map Filters NONE Filters NONE Steam 1 RUN: ab0c5e47-ee39-486e-b5cb-ad6f177432fc